[Event "*** Titled Tuesday Blitz"]
[Site "Chess.com"]
[Date "2020.03.03"]
[Round "4"]
[White "Ba_clbaf_osed_ingo_3v21"]
[Black "Rsnr"]
[Result "1-0"]
[WhiteElo "2616"]
[BlackElo "2795"]
[TimeControl "180+1"]
[EndTime "13:42:48 PST"]
[Termination "Ba_clbaf_osed_ingo_3v21 won by resignation"]

1. Nf3 {[%clk 0:03:00.9]} 1... d5 {[%clk 0:03:00.2]} 2. c4 {[%clk 0:03:00]} 2...
d4 {[%clk 0:03:00.7]} 3. g3 {[%clk 0:02:59.2]} 3... Nc6 {[%clk 0:03:00.3]} 4.
Bg2 {[%clk 0:02:58.9]} 4... e5 {[%clk 0:03:00.9]} 5. O-O {[%clk 0:02:59.8]} 5...
Nf6 {[%clk 0:02:59.2]} 6. d3 {[%clk 0:02:58.9]} 6... Be7 {[%clk 0:02:59.5]} 7.
a3 {[%clk 0:02:57.7]} 7... a5 {[%clk 0:02:59.8]} 8. e3 {[%clk 0:02:55.6]} 8...
O-O {[%clk 0:02:59.5]} 9. exd4 {[%clk 0:02:54.2]} 9... exd4 {[%clk 0:03:00.4]}
10. Re1 {[%clk 0:02:54]} 10... h6 {[%clk 0:02:48.7]} 11. Bf4 {[%clk 0:02:53.6]}
11... Re8 {[%clk 0:02:28.9]} 12. Ne5 {[%clk 0:02:48.4]} 12... Nxe5 {[%clk
0:02:27.4]} 13. Bxe5 {[%clk 0:02:49.3]} 13... c6 {[%clk 0:02:17.1]} 14. Nd2
{[%clk 0:02:46.7]} 14... Ng4 {[%clk 0:02:11.2]} 15. h3 {[%clk 0:02:36]} 15...
Nxe5 {[%clk 0:02:04.8]} 16. Rxe5 {[%clk 0:02:36.9]} 16... Be6 {[%clk 0:01:57.4]}
17. Rxe6 {[%clk 0:02:28.7]} 17... fxe6 {[%clk 0:01:57]} 18. Qh5 {[%clk
0:02:29.6]} 18... Qb6 {[%clk 0:01:43.4]} 19. Rb1 {[%clk 0:02:24.5]} 19... Qc5
{[%clk 0:01:42]} 20. Qe2 {[%clk 0:02:19.5]} 20... Qf5 {[%clk 0:01:41.9]} 21. Re1
{[%clk 0:02:07.3]} 21... e5 {[%clk 0:01:22.1]} 22. Bf3 {[%clk 0:01:51.6]} 22...
Bd6 {[%clk 0:01:05]} 23. Ne4 {[%clk 0:01:46]} 23... Rad8 {[%clk 0:01:04.1]} 24.
Bg4 {[%clk 0:01:40.8]} 24... Qf7 {[%clk 0:01:03.9]} 25. h4 {[%clk 0:01:40.9]}
25... Rf8 {[%clk 0:01:01.6]} 26. h5 {[%clk 0:01:37.5]} 26... Kh8 {[%clk
0:01:00.4]} 27. Kg2 {[%clk 0:01:37.5]} 27... Be7 {[%clk 0:00:50.7]} 28. Nd2
{[%clk 0:01:34.6]} 28... b5 {[%clk 0:00:47.1]} 29. cxb5 {[%clk 0:01:25.6]} 29...
cxb5 {[%clk 0:00:48]} 30. Nf3 {[%clk 0:01:23.3]} 30... Bf6 {[%clk 0:00:42.8]}
31. Rc1 {[%clk 0:01:18]} 31... Qd5 {[%clk 0:00:40.1]} 32. Bf5 {[%clk 0:01:15.3]}
32... Rfe8 {[%clk 0:00:28.9]} 33. Be4 {[%clk 0:01:12.2]} 33... Qd6 {[%clk
0:00:29.4]} 34. Rc6 {[%clk 0:01:08.9]} 34... Qe7 {[%clk 0:00:30.1]} 35. Qc2
{[%clk 0:01:05]} 35... Rd6 {[%clk 0:00:30.2]} 36. Rc7 {[%clk 0:01:02.4]} 36...
Rd7 {[%clk 0:00:30.6]} 37. Rc5 {[%clk 0:00:54.8]} 37... Rb8 {[%clk 0:00:27.6]}
38. Bf5 {[%clk 0:00:54]} 38... Rdd8 {[%clk 0:00:23.6]} 39. Nd2 {[%clk
0:00:54.4]} 39... Qf8 {[%clk 0:00:19.9]} 40. Ne4 {[%clk 0:00:52.6]} 40... Be7
{[%clk 0:00:20.3]} 41. Rxe5 {[%clk 0:00:50.8]} 41... Bd6 {[%clk 0:00:13.1]} 42.
Nxd6 {[%clk 0:00:50.8]} 42... Qxd6 {[%clk 0:00:14]} 43. Qe2 {[%clk 0:00:51.4]}
43... b4 {[%clk 0:00:11.3]} 44. Rxa5 {[%clk 0:00:47.7]} 44... bxa3 {[%clk
0:00:10.4]} 45. bxa3 {[%clk 0:00:48.6]} 45... Ra8 {[%clk 0:00:08.2]} 46. Re5
{[%clk 0:00:43.3]} 46... Qxa3 {[%clk 0:00:06.9]} 47. Qg4 {[%clk 0:00:29.9]}
47... Qd6 {[%clk 0:00:03.2]} 48. Re6 {[%clk 0:00:27.4]} 48... Qd5+ {[%clk
0:00:03.8]} 49. Be4 {[%clk 0:00:23.1]} 49... Qg5 {[%clk 0:00:03.5]} 50. Qxg5
{[%clk 0:00:16.7]} 50... hxg5 {[%clk 0:00:04.4]} 51. Bxa8 {[%clk 0:00:17.4]}
51... Rxa8 {[%clk 0:00:03.8]} 52. Rd6 {[%clk 0:00:16.9]} 52... Ra4 {[%clk
0:00:03.7]} 53. f3 {[%clk 0:00:17]} 53... Kh7 {[%clk 0:00:03.9]} 54. Kh3 {[%clk
0:00:17.3]} 54... Ra3 {[%clk 0:00:01.1]} 55. Rxd4 {[%clk 0:00:16.5]} 55... Kh6
{[%clk 0:00:02]} 56. Kg4 {[%clk 0:00:16.6]} 56... Ra6 {[%clk 0:00:02.9]} 57. Re4
{[%clk 0:00:12.1]} 57... Rd6 {[%clk 0:00:02.8]} 58. d4 {[%clk 0:00:12.1]} 58...
g6 {[%clk 0:00:03.1]} 59. hxg6 {[%clk 0:00:12]} 59... Kxg6 {[%clk 0:00:04]} 60.
f4 {[%clk 0:00:10.7]} 60... gxf4 {[%clk 0:00:04.9]} 61. Kxf4 {[%clk 0:00:10.7]}
61... Kf6 {[%clk 0:00:03.4]} 62. g4 {[%clk 0:00:11]} 62... Rd5 {[%clk
0:00:02.9]} 63. Ke3 {[%clk 0:00:07.6]} 63... Rg5 {[%clk 0:00:02.5]} 64. Kd3
{[%clk 0:00:07.1]} 64... Rg8 {[%clk 0:00:02.1]} 65. d5 {[%clk 0:00:06.7]} 65...
Rd8 {[%clk 0:00:02]} 66. Kd4 {[%clk 0:00:06.9]} 66... Ra8 {[%clk 0:00:02.9]} 67.
d6 {[%clk 0:00:06.7]} 67... Ra4+ {[%clk 0:00:03]} 68. Kd5 {[%clk 0:00:06.7]}
68... Ra1 {[%clk 0:00:03.9]} 69. Kc6 {[%clk 0:00:06.6]} 69... Rc1+ {[%clk
0:00:04.7]} 70. Kd7 {[%clk 0:00:06.1]} 70... Ra1 {[%clk 0:00:05.4]} 71. Re2
{[%clk 0:00:04.4]} 71... Ra7+ {[%clk 0:00:05.2]} 72. Kc8 {[%clk 0:00:04.6]}
72... Ra8+ {[%clk 0:00:05.7]} 73. Kb7 {[%clk 0:00:04.7]} 1-0

[Event "*** Titled Tuesday Blitz"]
[Site "Chess.com"]
[Date "2020.03.03"]
[Round "4"]
[White "HouseOfDurin"]
[Black "RemcoSpr"]
[Result "0-1"]
[WhiteElo "2083"]
[BlackElo "2268"]
[TimeControl "180+1"]
[EndTime "13:42:52 PST"]
[Termination "RemcoSpr won by resignation"]

1. d4 {[%clk 0:03:00.9]} 1... Nf6 {[%clk 0:02:59.6]} 2. Bg5 {[%clk 0:03:01.2]}
2... Ne4 {[%clk 0:02:59.4]} 3. h4 {[%clk 0:03:00.9]} 3... c5 {[%clk 0:02:58.2]}
4. dxc5 {[%clk 0:03:00.9]} 4... Nxc5 {[%clk 0:02:55.9]} 5. Nd2 {[%clk
0:02:57.3]} 5... Nc6 {[%clk 0:02:51.6]} 6. e4 {[%clk 0:02:56.6]} 6... f6 {[%clk
0:02:31.9]} 7. Be3 {[%clk 0:02:55.6]} 7... e6 {[%clk 0:02:29.8]} 8. c3 {[%clk
0:02:40.4]} 8... d5 {[%clk 0:02:27.3]} 9. exd5 {[%clk 0:02:35.2]} 9... exd5
{[%clk 0:02:28.2]} 10. b4 {[%clk 0:02:05.7]} 10... Ne6 {[%clk 0:02:27.9]} 11.
Bd3 {[%clk 0:02:05.5]} 11... Ne5 {[%clk 0:02:27.1]} 12. Bc2 {[%clk 0:01:47.8]}
12... Qc7 {[%clk 0:02:09.3]} 13. Ne2 {[%clk 0:01:42.4]} 13... Bd7 {[%clk
0:02:00.7]} 14. Nb3 {[%clk 0:01:19.3]} 14... Bb5 {[%clk 0:01:55.3]} 15. Nbd4
{[%clk 0:01:08.9]} 15... Nxd4 {[%clk 0:01:46.9]} 16. Bxd4 {[%clk 0:01:06.7]}
16... O-O-O {[%clk 0:01:37.5]} 17. a4 {[%clk 0:01:04.3]} 17... Bc4 {[%clk
0:01:33]} 18. O-O {[%clk 0:00:59.7]} 18... Kb8 {[%clk 0:01:20.4]} 19. Bf5 {[%clk
0:00:48.9]} 19... g6 {[%clk 0:01:11.1]} 20. Bh3 {[%clk 0:00:47.7]} 20... g5
{[%clk 0:01:03.3]} 21. hxg5 {[%clk 0:00:43.9]} 21... fxg5 {[%clk 0:01:04.2]} 22.
Bxe5 {[%clk 0:00:43.7]} 22... Qxe5 {[%clk 0:01:02.5]} 23. Re1 {[%clk 0:00:43.7]}
23... Bd6 {[%clk 0:00:53.2]} 24. g3 {[%clk 0:00:21.9]} 24... h5 {[%clk
0:00:46.9]} 25. Qd4 {[%clk 0:00:17.4]} 25... Rhe8 {[%clk 0:00:38.7]} 26. Qxe5
{[%clk 0:00:15.1]} 26... Rxe5 {[%clk 0:00:36.5]} 27. Nd4 {[%clk 0:00:15.2]}
27... Rde8 {[%clk 0:00:36.1]} 28. Rxe5 {[%clk 0:00:13.9]} 28... Rxe5 {[%clk
0:00:37]} 29. Bf1 {[%clk 0:00:12.2]} 29... h4 {[%clk 0:00:33.1]} 30. Bxc4 {[%clk
0:00:11.2]} 30... dxc4 {[%clk 0:00:34]} 31. Kf1 {[%clk 0:00:10.5]} 31... hxg3
{[%clk 0:00:33.4]} 32. fxg3 {[%clk 0:00:11.4]} 32... Re3 {[%clk 0:00:33.3]} 33.
Re1 {[%clk 0:00:10.6]} 33... Rxg3 {[%clk 0:00:25.6]} 34. Re6 {[%clk 0:00:09.1]}
34... Bf4 {[%clk 0:00:21.7]} 35. Nb5 {[%clk 0:00:08]} 35... Kc8 {[%clk 0:00:21]}
36. Re4 {[%clk 0:00:04.7]} 36... a6 {[%clk 0:00:19.2]} 37. Rxc4+ {[%clk
0:00:04.8]} 37... Kd7 {[%clk 0:00:19.1]} 38. Nd4 {[%clk 0:00:03.2]} 38... Rd3
{[%clk 0:00:15.7]} 39. Rc5 {[%clk 0:00:03]} 39... g4 {[%clk 0:00:12.4]} 40. Rd5+
{[%clk 0:00:02.2]} 40... Kc8 {[%clk 0:00:11.3]} 41. Rc5+ {[%clk 0:00:01.3]}
41... Kb8 {[%clk 0:00:11.3]} 42. Rd5 {[%clk 0:00:01.7]} 42... Rxc3 {[%clk
0:00:10.4]} 43. Kg2 {[%clk 0:00:02.3]} 43... Ra3 {[%clk 0:00:09.5]} 44. Ne2
{[%clk 0:00:02.5]} 44... Ra2 {[%clk 0:00:09.2]} 45. Kf1 {[%clk 0:00:02.8]} 45...
Bc7 {[%clk 0:00:08.6]} 46. Rg5 {[%clk 0:00:02.7]} 46... Rxa4 {[%clk 0:00:07]}
47. Rxg4 {[%clk 0:00:02.9]} 47... Ka7 {[%clk 0:00:07.5]} 48. Rd4 {[%clk
0:00:02.5]} 48... Bb6 {[%clk 0:00:07.4]} 49. Rf4 {[%clk 0:00:01.9]} 49... Ra1+
{[%clk 0:00:06.3]} 50. Kg2 {[%clk 0:00:01.7]} 50... Ra2 {[%clk 0:00:07.2]} 51.
Kf3 {[%clk 0:00:02]} 51... Ra3+ {[%clk 0:00:06.8]} 52. Kg2 {[%clk 0:00:01.7]}
52... Bc7 {[%clk 0:00:07.6]} 53. Kf1 {[%clk 0:00:02.2]} 53... Bxf4 {[%clk
0:00:07.5]} 54. Nxf4 {[%clk 0:00:03.1]} 54... Ra4 {[%clk 0:00:07.2]} 55. Nd5
{[%clk 0:00:04]} 55... Kb8 {[%clk 0:00:06.5]} 56. Ke2 {[%clk 0:00:04.9]} 56...
a5 {[%clk 0:00:05.5]} 57. Kd3 {[%clk 0:00:05.8]} 57... axb4 {[%clk 0:00:02.8]}
58. Kc4 {[%clk 0:00:06.7]} 58... Ra1 {[%clk 0:00:03]} 59. Nxb4 {[%clk
0:00:07.6]} 59... Rc1+ {[%clk 0:00:02.8]} 60. Kb3 {[%clk 0:00:07.9]} 60... Kc7
{[%clk 0:00:02.6]} 61. Nd3 {[%clk 0:00:08.5]} 61... Rd1 {[%clk 0:00:02.4]} 62.
Kc3 {[%clk 0:00:08.4]} 62... Rh1 {[%clk 0:00:02.1]} 63. Nb4 {[%clk 0:00:08.7]}
63... Rh3+ {[%clk 0:00:02.3]} 64. Kc4 {[%clk 0:00:09.6]} 64... Kb8 {[%clk
0:00:03]} 65. Nd5 {[%clk 0:00:10.5]} 65... Rh4+ {[%clk 0:00:03.8]} 66. Kc5
{[%clk 0:00:11.4]} 66... Ka7 {[%clk 0:00:04.5]} 67. Kd6 {[%clk 0:00:12.2]} 67...
Rh5 {[%clk 0:00:04.9]} 68. Kc5 {[%clk 0:00:13.1]} 68... Ka6 {[%clk 0:00:05.3]}
69. Kc4 {[%clk 0:00:14]} 69... b5+ {[%clk 0:00:05.2]} 70. Kc5 {[%clk 0:00:14.9]}
70... Ka5 {[%clk 0:00:04.9]} 71. Kd4 {[%clk 0:00:15.8]} 71... Rxd5+ {[%clk
0:00:04.8]} 72. Kxd5 {[%clk 0:00:15.7]} 72... Kb4 {[%clk 0:00:05.7]} 73. Kd4
{[%clk 0:00:16.6]} 73... Ka3 {[%clk 0:00:05.8]} 74. Kd3 {[%clk 0:00:17.5]} 74...
b4 {[%clk 0:00:05.9]} 75. Kd2 {[%clk 0:00:18.4]} 75... Ka2 {[%clk 0:00:05.9]}
76. Kc2 {[%clk 0:00:19.3]} 76... b3+ {[%clk 0:00:06.8]} 77. Kc1 {[%clk
0:00:19.9]} 77... b2+ {[%clk 0:00:07.7]} 78. Kd2 {[%clk 0:00:20.8]} 78... b1=Q
{[%clk 0:00:08.6]} 79. Ke3 {[%clk 0:00:20.7]} 79... Qb4 {[%clk 0:00:08.8]} 80.
Kd3 {[%clk 0:00:20.7]} 80... Qf4 {[%clk 0:00:08.5]} 81. Kc3 {[%clk 0:00:20.1]}
81... Qe4 {[%clk 0:00:08.8]} 82. Kd2 {[%clk 0:00:20.2]} 82... Qf3 {[%clk
0:00:09.1]} 83. Kc2 {[%clk 0:00:20]} 83... Qe3 {[%clk 0:00:09.3]} 84. Kd1 {[%clk
0:00:19.4]} 84... Qf2 {[%clk 0:00:09.5]} 85. Kc1 {[%clk 0:00:19.9]} 85... Kb3
{[%clk 0:00:09.9]} 0-1

[Event "*** Titled Tuesday Blitz"]
[Site "Chess.com"]
[Date "2020.03.03"]
[Round "4"]
[White "RiskyDecision"]
[Black "Hrant_ChessMood"]
[Result "0-1"]
[WhiteElo "2629"]
[BlackElo "2938"]
[TimeControl "180+1"]
[EndTime "13:43:02 PST"]
[Termination "Hrant_ChessMood won by resignation"]

1. d4 {[%clk 0:03:00.8]} 1... Nf6 {[%clk 0:02:58.3]} 2. c4 {[%clk 0:03:00.9]}
2... g6 {[%clk 0:02:58.5]} 3. g3 {[%clk 0:03:00.9]} 3... Bg7 {[%clk 0:02:57.6]}
4. Bg2 {[%clk 0:03:01.5]} 4... O-O {[%clk 0:02:57.7]} 5. Nc3 {[%clk 0:03:02.2]}
5... d6 {[%clk 0:02:57.3]} 6. Nf3 {[%clk 0:03:02.9]} 6... Nc6 {[%clk 0:02:57.4]}
7. O-O {[%clk 0:03:03.6]} 7... e5 {[%clk 0:02:57.5]} 8. dxe5 {[%clk 0:03:03.3]}
8... dxe5 {[%clk 0:02:57.9]} 9. Bg5 {[%clk 0:03:00.8]} 9... Be6 {[%clk
0:02:57.1]} 10. Qa4 {[%clk 0:02:54.4]} 10... Qc8 {[%clk 0:02:52.5]} 11. Rfd1
{[%clk 0:02:42.7]} 11... Nd7 {[%clk 0:02:43.9]} 12. Nd5 {[%clk 0:02:34.5]} 12...
Nb6 {[%clk 0:02:40.1]} 13. Qb5 {[%clk 0:02:12.5]} 13... f6 {[%clk 0:02:36.9]}
14. Be3 {[%clk 0:02:07.5]} 14... Rf7 {[%clk 0:02:32.5]} 15. Bc5 {[%clk
0:01:57.5]} 15... Bf8 {[%clk 0:02:29.2]} 16. Bxf8 {[%clk 0:01:54.7]} 16... Qxf8
{[%clk 0:02:28.7]} 17. Ne1 {[%clk 0:01:45.4]} 17... Nd4 {[%clk 0:02:20.3]} 18.
Nxf6+ {[%clk 0:01:09.9]} 18... Rxf6 {[%clk 0:02:14.6]} 19. Qxe5 {[%clk
0:01:10.8]} 19... c5 {[%clk 0:02:02.1]} 20. Bxb7 {[%clk 0:00:59.2]} 20... Rxf2
{[%clk 0:01:55.2]} 21. Bf3 {[%clk 0:00:39.4]} 21... Nxc4 {[%clk 0:01:45.5]} 22.
Qe4 {[%clk 0:00:39.2]} 22... Nd6 {[%clk 0:01:07.5]} 23. Qe3 {[%clk 0:00:35.8]}
23... Rxf3 {[%clk 0:01:04.4]} 24. exf3 {[%clk 0:00:26.7]} 24... Re8 {[%clk
0:01:01.2]} 25. Qf2 {[%clk 0:00:21.4]} 25... Bd5 {[%clk 0:00:53.8]} 26. Rxd4
{[%clk 0:00:13.9]} 26... cxd4 {[%clk 0:00:54.2]} 27. Qxd4 {[%clk 0:00:14.8]}
27... Ba8 {[%clk 0:00:54.2]} 28. Rd1 {[%clk 0:00:12.4]} 28... Nf7 {[%clk
0:00:53]} 29. Qxa7 {[%clk 0:00:11.3]} 29... Ng5 {[%clk 0:00:48.5]} 30. Qf2
{[%clk 0:00:05.5]} 30... Rxe1+ {[%clk 0:00:47.2]} 31. Rxe1 {[%clk 0:00:05.5]}
31... Nxf3+ {[%clk 0:00:48.1]} 32. Kf1 {[%clk 0:00:05.5]} 32... Nxe1 {[%clk
0:00:45.5]} 33. Kxe1 {[%clk 0:00:06.4]} 33... Qxf2+ {[%clk 0:00:43.2]} 34. Kxf2
{[%clk 0:00:07.3]} 34... Kf7 {[%clk 0:00:43.7]} 35. Ke3 {[%clk 0:00:07.2]} 35...
Ke6 {[%clk 0:00:43.7]} 36. Kf4 {[%clk 0:00:07.3]} 36... h6 {[%clk 0:00:41.2]}
37. h4 {[%clk 0:00:07.2]} 37... Bd5 {[%clk 0:00:35.3]} 38. a3 {[%clk 0:00:06.3]}
38... Bb3 {[%clk 0:00:33.8]} 39. g4 {[%clk 0:00:06]} 39... Bc2 {[%clk
0:00:19.1]} 40. b4 {[%clk 0:00:04.2]} 40... Ba4 {[%clk 0:00:19.5]} 41. Ke4
{[%clk 0:00:03.5]} 41... Bd1 {[%clk 0:00:14.3]} 42. Kf4 {[%clk 0:00:03.6]} 42...
Be2 {[%clk 0:00:11.5]} 43. a4 {[%clk 0:00:03.6]} 43... Bd1 {[%clk 0:00:11.8]}
44. a5 {[%clk 0:00:03.6]} 44... Be2 {[%clk 0:00:12.3]} 45. h5 {[%clk 0:00:02.1]}
45... g5+ {[%clk 0:00:11.9]} 46. Ke3 {[%clk 0:00:02.7]} 46... Bb5 {[%clk
0:00:05]} 47. Kd4 {[%clk 0:00:02.2]} 47... Kd6 {[%clk 0:00:05.3]} 48. Ke4 {[%clk
0:00:02.8]} 48... Bd7 {[%clk 0:00:05.2]} 49. Kd4 {[%clk 0:00:02.2]} 49... Bxg4
{[%clk 0:00:05]} 50. b5 {[%clk 0:00:02.8]} 50... Bxh5 {[%clk 0:00:05.4]} 51. a6
{[%clk 0:00:02.6]} 51... Bf3 {[%clk 0:00:05.7]} 52. b6 {[%clk 0:00:02.5]} 52...
Kc6 {[%clk 0:00:05.2]} 53. b7 {[%clk 0:00:02.7]} 53... Kc7 {[%clk 0:00:05.3]}
54. Ke3 {[%clk 0:00:01.9]} 54... Bxb7 {[%clk 0:00:05.6]} 55. a7 {[%clk
0:00:02.2]} 55... Ba8 {[%clk 0:00:05.7]} 56. Kf2 {[%clk 0:00:03.1]} 56... Kb6
{[%clk 0:00:05.7]} 57. Kg3 {[%clk 0:00:04]} 57... Kxa7 {[%clk 0:00:06.2]} 58.
Kg4 {[%clk 0:00:04.9]} 58... Kb6 {[%clk 0:00:06.6]} 59. Kh5 {[%clk 0:00:05.8]}
59... Kc5 {[%clk 0:00:05.7]} 60. Kg4 {[%clk 0:00:06.7]} 60... Kd4 {[%clk
0:00:05.1]} 61. Kh5 {[%clk 0:00:07.6]} 61... Be4 {[%clk 0:00:05.5]} 62. Kg4
{[%clk 0:00:08.5]} 62... Ke3 {[%clk 0:00:05]} 63. Kh5 {[%clk 0:00:09.4]} 63...
Kf4 {[%clk 0:00:04.3]} 64. Kxh6 {[%clk 0:00:10.3]} 64... g4 {[%clk 0:00:05.2]}
65. Kh5 {[%clk 0:00:10.8]} 65... g3 {[%clk 0:00:06.1]} 0-1

[Event "*** Titled Tuesday Blitz"]
[Site "Chess.com"]
[Date "2020.03.03"]
[Round "4"]
[White "GMsKoRPioN"]
[Black "Eliwood44"]
[Result "1-0"]
[WhiteElo "2520"]
[BlackElo "2311"]
[TimeControl "180+1"]
[EndTime "13:43:22 PST"]
[Termination "GMsKoRPioN won by resignation"]

1. d4 {[%clk 0:03:00.4]} 1... d5 {[%clk 0:02:58.6]} 2. c4 {[%clk 0:03:00.6]}
2... e6 {[%clk 0:02:58.7]} 3. Nf3 {[%clk 0:03:00.4]} 3... Nf6 {[%clk 0:02:58.5]}
4. Nc3 {[%clk 0:03:00.9]} 4... Be7 {[%clk 0:02:58.3]} 5. Bf4 {[%clk 0:03:00]}
5... O-O {[%clk 0:02:51.5]} 6. e3 {[%clk 0:02:59.9]} 6... b6 {[%clk 0:02:51.4]}
7. cxd5 {[%clk 0:02:58.8]} 7... Nxd5 {[%clk 0:02:51]} 8. Nxd5 {[%clk 0:02:55.9]}
8... Qxd5 {[%clk 0:02:51.9]} 9. a3 {[%clk 0:02:38.5]} 9... c5 {[%clk 0:02:46.5]}
10. Be2 {[%clk 0:02:30.5]} 10... Nc6 {[%clk 0:02:37.8]} 11. dxc5 {[%clk
0:02:20.6]} 11... Qxd1+ {[%clk 0:02:15.6]} 12. Rxd1 {[%clk 0:02:21.5]} 12...
Bxc5 {[%clk 0:02:15.6]} 13. b4 {[%clk 0:02:19.8]} 13... Be7 {[%clk 0:02:07.4]}
14. Rc1 {[%clk 0:02:18.3]} 14... Bb7 {[%clk 0:01:44.7]} 15. O-O {[%clk
0:02:17.9]} 15... Rac8 {[%clk 0:01:44]} 16. Rfd1 {[%clk 0:02:13.2]} 16... Rfd8
{[%clk 0:01:28.7]} 17. h3 {[%clk 0:02:13.1]} 17... Rxd1+ {[%clk 0:01:15.6]} 18.
Rxd1 {[%clk 0:02:13]} 18... Rd8 {[%clk 0:01:15.7]} 19. Rc1 {[%clk 0:02:13.5]}
19... Kf8 {[%clk 0:01:06.4]} 20. Bb5 {[%clk 0:02:03.3]} 20... Rc8 {[%clk
0:00:59.1]} 21. h4 {[%clk 0:01:36.5]} 21... f6 {[%clk 0:00:58.3]} 22. h5 {[%clk
0:01:31.9]} 22... e5 {[%clk 0:00:57.3]} 23. Bg3 {[%clk 0:01:31.6]} 23... Nd8
{[%clk 0:00:46.5]} 24. Rd1 {[%clk 0:01:17.5]} 24... Rc3 {[%clk 0:00:44.7]} 25.
Nh4 {[%clk 0:01:11.4]} 25... Bc8 {[%clk 0:00:41.8]} 26. Rd3 {[%clk 0:01:05]}
26... Rc1+ {[%clk 0:00:32.8]} 27. Kh2 {[%clk 0:01:03.8]} 27... Bg4 {[%clk
0:00:19.9]} 28. f3 {[%clk 0:00:59.3]} 28... Bxh5 {[%clk 0:00:19.6]} 29. e4
{[%clk 0:00:49.5]} 29... Be8 {[%clk 0:00:14.1]} 30. Bxe8 {[%clk 0:00:44.3]}
30... Kxe8 {[%clk 0:00:15]} 31. Nf5 {[%clk 0:00:45.2]} 31... g6 {[%clk
0:00:14.5]} 32. Ne3 {[%clk 0:00:41.6]} 32... a5 {[%clk 0:00:11.5]} 33. Nd5
{[%clk 0:00:38.7]} 33... axb4 {[%clk 0:00:11.4]} 34. axb4 {[%clk 0:00:39.6]}
34... Nc6 {[%clk 0:00:11.1]} 35. b5 {[%clk 0:00:35.3]} 35... Nb4 {[%clk
0:00:10.9]} 36. Nxb4 {[%clk 0:00:33.7]} 36... Bxb4 {[%clk 0:00:10.4]} 37. Bf2
{[%clk 0:00:34.6]} 37... Bc5 {[%clk 0:00:09.3]} 38. Bxc5 {[%clk 0:00:34.8]}
38... Rxc5 {[%clk 0:00:10.2]} 39. Rd6 {[%clk 0:00:35.2]} 39... Rxb5 {[%clk
0:00:09.2]} 40. Rxf6 {[%clk 0:00:35.8]} 40... Rb2 {[%clk 0:00:08.3]} 41. Re6+
{[%clk 0:00:35.3]} 41... Kf7 {[%clk 0:00:08.5]} 42. Rxe5 {[%clk 0:00:36.2]}
42... b5 {[%clk 0:00:09.1]} 43. Rc5 {[%clk 0:00:35.8]} 43... b4 {[%clk
0:00:09.2]} 44. Rc7+ {[%clk 0:00:36.4]} 44... Kg8 {[%clk 0:00:08.9]} 45. Rb7
{[%clk 0:00:36.6]} 45... b3 {[%clk 0:00:09.4]} 46. Kg3 {[%clk 0:00:36.8]} 46...
h6 {[%clk 0:00:09.8]} 47. Rb6 {[%clk 0:00:35.3]} 47... Kf7 {[%clk 0:00:09.4]}
48. Rb7+ {[%clk 0:00:35.6]} 48... Kf6 {[%clk 0:00:09.7]} 49. Kf4 {[%clk
0:00:35.2]} 49... Rxg2 {[%clk 0:00:09]} 50. Rb6+ {[%clk 0:00:34.3]} 50... Kf7
{[%clk 0:00:08.7]} 51. Rxb3 {[%clk 0:00:35.2]} 51... Re2 {[%clk 0:00:08.7]} 52.
Rb6 {[%clk 0:00:34.5]} 52... Re1 {[%clk 0:00:07.9]} 53. Ke5 {[%clk 0:00:34.6]}
53... Ra1 {[%clk 0:00:06.4]} 54. Rf6+ {[%clk 0:00:32.4]} 54... Kg7 {[%clk
0:00:06]} 55. Rd6 {[%clk 0:00:33]} 55... Kf7 {[%clk 0:00:05.8]} 56. Rd7+ {[%clk
0:00:33.1]} 56... Ke8 {[%clk 0:00:05]} 57. Rg7 {[%clk 0:00:31.9]} 57... Ra5+
{[%clk 0:00:02.8]} 58. Kf4 {[%clk 0:00:30.5]} 58... Ra6 {[%clk 0:00:03.1]} 59.
Rh7 {[%clk 0:00:29.6]} 59... h5 {[%clk 0:00:02]} 60. Kg5 {[%clk 0:00:29.8]}
60... Kf8 {[%clk 0:00:02.4]} 61. Rb7 {[%clk 0:00:28.6]} 61... Ra3 {[%clk
0:00:02.2]} 62. f4 {[%clk 0:00:27.9]} 62... Ra6 {[%clk 0:00:02.6]} 63. e5 {[%clk
0:00:27.1]} 63... Ke8 {[%clk 0:00:02.7]} 64. Rg7 {[%clk 0:00:26.8]} 64... Kf8
{[%clk 0:00:02.6]} 65. Rh7 {[%clk 0:00:22.8]} 65... Kg8 {[%clk 0:00:02.6]} 66.
Rb7 {[%clk 0:00:23.1]} 66... Kf8 {[%clk 0:00:02.4]} 67. Rd7 {[%clk 0:00:23.3]}
67... Ke8 {[%clk 0:00:02.6]} 68. Rh7 {[%clk 0:00:20]} 68... Kf8 {[%clk
0:00:02.7]} 69. f5 {[%clk 0:00:20.6]} 69... gxf5 {[%clk 0:00:01.8]} 70. Kxf5
{[%clk 0:00:21.5]} 70... Rb6 {[%clk 0:00:02.3]} 71. Rxh5 {[%clk 0:00:20.7]}
71... Ke8 {[%clk 0:00:02.3]} 72. Rh8+ {[%clk 0:00:20.8]} 72... Ke7 {[%clk
0:00:02.4]} 73. Rh7+ {[%clk 0:00:21.7]} 73... Ke8 {[%clk 0:00:02.8]} 74. Ra7
{[%clk 0:00:22.1]} 74... Rc6 {[%clk 0:00:02.5]} 75. Ra5 {[%clk 0:00:22.1]} 75...
Rb6 {[%clk 0:00:02.7]} 76. Ra4 {[%clk 0:00:22.4]} 76... Ke7 {[%clk 0:00:03]} 77.
Rh4 {[%clk 0:00:22.7]} 77... Ke8 {[%clk 0:00:03.1]} 78. Rh7 {[%clk 0:00:22.9]}
78... Ra6 {[%clk 0:00:02.9]} 79. Ke4 {[%clk 0:00:23.3]} 79... Rb6 {[%clk
0:00:02.7]} 80. Kd5 {[%clk 0:00:23.8]} 80... Rb5+ {[%clk 0:00:03]} 81. Kd6
{[%clk 0:00:21.8]} 81... Rb6+ {[%clk 0:00:03.2]} 82. Kc5 {[%clk 0:00:22.1]}
82... Re6 {[%clk 0:00:03.2]} 83. Kd5 {[%clk 0:00:22.5]} 83... Ra6 {[%clk
0:00:03.6]} 84. Rb7 {[%clk 0:00:22.7]} 84... Ra5+ {[%clk 0:00:03.2]} 85. Ke6
{[%clk 0:00:20.7]} 85... Ra6+ {[%clk 0:00:03.6]} 86. Kf5 {[%clk 0:00:21.6]}
86... Rc6 {[%clk 0:00:03.5]} 87. Kg5 {[%clk 0:00:21.9]} 87... Ra6 {[%clk
0:00:03.6]} 88. Kf4 {[%clk 0:00:22.4]} 88... Rc6 {[%clk 0:00:03.5]} 89. Ke4
{[%clk 0:00:22.6]} 89... Ra6 {[%clk 0:00:03.8]} 90. Rb8+ {[%clk 0:00:22.9]}
90... Ke7 {[%clk 0:00:03.7]} 91. Rh8 {[%clk 0:00:23.5]} 91... Ra4+ {[%clk
0:00:02.6]} 92. Kf5 {[%clk 0:00:23.7]} 92... Ra5 {[%clk 0:00:03.1]} 93. Rh7+
{[%clk 0:00:22.8]} 93... Ke8 {[%clk 0:00:03.5]} 94. Kf6 {[%clk 0:00:22.9]} 94...
Ra1 {[%clk 0:00:03]} 95. Rh8+ {[%clk 0:00:22.2]} 95... Kd7 {[%clk 0:00:03.1]}
96. e6+ {[%clk 0:00:22.8]} 96... Kd6 {[%clk 0:00:03.1]} 97. Rd8+ {[%clk
0:00:23.1]} 97... Kc7 {[%clk 0:00:03]} 98. e7 {[%clk 0:00:24]} 98... Rf1+ {[%clk
0:00:03.4]} 99. Kg5 {[%clk 0:00:24.4]} 99... Rg1+ {[%clk 0:00:03.4]} 100. Kf4
{[%clk 0:00:24.8]} 100... Re1 {[%clk 0:00:03.7]} 101. e8=Q {[%clk 0:00:24.1]}
1-0